[Event "*** Titled Tuesday Blitz"]
[Site "Chess.com"]
[Date "2020.04.07"]
[Round "7"]
[White "Gabrielian_Artur"]
[Black "Natalya_Buksa"]
[Result "1-0"]
[WhiteElo "2721"]
[BlackElo "2457"]
[TimeControl "180+1"]
[EndTime "14:20:32 PDT"]
[Termination "Gabrielian_Artur won by resignation"]

1. e4 {[%clk 0:03:00.9]} 1... c5 {[%clk 0:02:59.4]} 2. Nc3 {[%clk 0:03:00.7]}
2... Nc6 {[%clk 0:02:58.2]} 3. Bb5 {[%clk 0:03:00.2]} 3... Nd4 {[%clk
0:02:57.4]} 4. Bc4 {[%clk 0:02:59.9]} 4... e6 {[%clk 0:02:56.9]} 5. Nf3 {[%clk
0:02:59.7]} 5... a6 {[%clk 0:02:56.9]} 6. O-O {[%clk 0:02:58.3]} 6... b5 {[%clk
0:02:56.2]} 7. Bd3 {[%clk 0:02:57.6]} 7... Ne7 {[%clk 0:02:51]} 8. Nxd4 {[%clk
0:02:57.4]} 8... cxd4 {[%clk 0:02:50.2]} 9. Ne2 {[%clk 0:02:57.4]} 9... Nc6
{[%clk 0:02:50.8]} 10. a4 {[%clk 0:02:57.2]} 10... b4 {[%clk 0:02:46.6]} 11. Ng3
{[%clk 0:02:55.4]} 11... Be7 {[%clk 0:02:44.8]} 12. f4 {[%clk 0:02:54.6]} 12...
Bb7 {[%clk 0:02:38.4]} 13. b3 {[%clk 0:02:54.4]} 13... d5 {[%clk 0:02:33.1]} 14.
e5 {[%clk 0:02:04.4]} 14... g6 {[%clk 0:02:28.7]} 15. Bb2 {[%clk 0:02:02.9]}
15... Qb6 {[%clk 0:02:28]} 16. Kh1 {[%clk 0:02:01.1]} 16... a5 {[%clk
0:02:27.6]} 17. Bb5 {[%clk 0:01:57.4]} 17... Bc5 {[%clk 0:02:24.8]} 18. Qf3
{[%clk 0:01:45.8]} 18... Ba6 {[%clk 0:02:21.7]} 19. Bxc6+ {[%clk 0:01:41.8]}
19... Qxc6 {[%clk 0:02:18.3]} 20. d3 {[%clk 0:01:42]} 20... O-O-O {[%clk
0:02:14.6]} 21. Ne2 {[%clk 0:01:41.4]} 21... Qb6 {[%clk 0:02:14.5]} 22. Qf2
{[%clk 0:01:41.3]} 22... Kb8 {[%clk 0:02:09.9]} 23. Bxd4 {[%clk 0:01:35.7]}
23... Bxd4 {[%clk 0:02:09.1]} 24. Nxd4 {[%clk 0:01:30.5]} 24... Rc8 {[%clk
0:02:07.9]} 25. Nf3 {[%clk 0:01:17.7]} 25... Qxf2 {[%clk 0:02:01.4]} 26. Rxf2
{[%clk 0:01:17.7]} 26... Rc7 {[%clk 0:02:02.1]} 27. Nd4 {[%clk 0:01:13.3]} 27...
Rhc8 {[%clk 0:01:59.5]} 28. g4 {[%clk 0:01:09.4]} 28... Kb7 {[%clk 0:01:58.6]}
29. Kg2 {[%clk 0:01:09]} 29... Kb6 {[%clk 0:01:58.8]} 30. Kf3 {[%clk 0:01:09.3]}
30... Kc5 {[%clk 0:01:57.9]} 31. Ke3 {[%clk 0:01:09.5]} 31... Rh8 {[%clk
0:01:54.4]} 32. f5 {[%clk 0:01:05.6]} 32... gxf5 {[%clk 0:01:45.7]} 33. gxf5
{[%clk 0:01:05.6]} 33... Bc8 {[%clk 0:01:45]} 34. fxe6 {[%clk 0:01:04.3]} 34...
fxe6 {[%clk 0:01:38.4]} 35. Rg1 {[%clk 0:01:03.5]} 35... Kb6 {[%clk 0:01:34.4]}
36. Rf6 {[%clk 0:00:59.2]} 36... Re8 {[%clk 0:01:34.6]} 37. h4 {[%clk
0:00:56.5]} 37... Ree7 {[%clk 0:01:08.7]} 38. h5 {[%clk 0:00:45.7]} 38... Rf7
{[%clk 0:01:04.9]} 39. Rxf7 {[%clk 0:00:36.8]} 39... Rxf7 {[%clk 0:01:03.4]} 40.
h6 {[%clk 0:00:37.2]} 40... Rf8 {[%clk 0:00:43.1]} 41. Rg7 {[%clk 0:00:35.2]}
41... Rf1 {[%clk 0:00:41.5]} 42. Rxh7 {[%clk 0:00:30.7]} 42... Re1+ {[%clk
0:00:41.8]} 43. Kf4 {[%clk 0:00:29.2]} 43... Rh1 {[%clk 0:00:41.7]} 44. Rh8
{[%clk 0:00:27.1]} 44... Bd7 {[%clk 0:00:41.3]} 45. Nf3 {[%clk 0:00:21.1]} 45...
Kc7 {[%clk 0:00:22.4]} 46. d4 {[%clk 0:00:19.2]} 46... Be8 {[%clk 0:00:19.8]}
47. Rxe8 {[%clk 0:00:17.8]} 47... Rxh6 {[%clk 0:00:19.9]} 48. Re7+ {[%clk
0:00:17.5]} 48... Kc6 {[%clk 0:00:17.5]} 49. Ng5 {[%clk 0:00:17.2]} 49... Rh4+
{[%clk 0:00:17.4]} 50. Ke3 {[%clk 0:00:16.8]} 50... Rg4 {[%clk 0:00:17.4]} 51.
Nxe6 {[%clk 0:00:16]} 51... Re4+ {[%clk 0:00:15.2]} 52. Kd3 {[%clk 0:00:16]}
52... Rh4 {[%clk 0:00:15.3]} 53. Nd8+ {[%clk 0:00:10.9]} 53... Kb6 {[%clk
0:00:15.3]} 54. Rb7+ {[%clk 0:00:10.7]} 54... Ka6 {[%clk 0:00:14.5]} 55. Rb5
{[%clk 0:00:10.9]} 55... Ka7 {[%clk 0:00:13.7]} 56. Nc6+ {[%clk 0:00:10.3]}
56... Ka6 {[%clk 0:00:12.6]} 57. Nxa5 {[%clk 0:00:10.4]} 57... Re4 {[%clk
0:00:11.7]} 58. Nb7 {[%clk 0:00:09.2]} 58... Rh4 {[%clk 0:00:09.5]} 59. Nc5+
{[%clk 0:00:08.8]} 59... Ka7 {[%clk 0:00:10]} 60. e6 {[%clk 0:00:09.2]} 60...
Rh3+ {[%clk 0:00:09.5]} 61. Kd2 {[%clk 0:00:09.2]} 61... Rh2+ {[%clk 0:00:10.1]}
62. Kc1 {[%clk 0:00:09.3]} 62... Rh1+ {[%clk 0:00:10.4]} 63. Kb2 {[%clk
0:00:09.6]} 63... Re1 {[%clk 0:00:11.2]} 64. Rb7+ {[%clk 0:00:09.4]} 64... Ka8
{[%clk 0:00:12.1]} 65. Rd7 {[%clk 0:00:09.7]} 65... Kb8 {[%clk 0:00:12.2]} 66.
e7 {[%clk 0:00:10]} 66... Kc8 {[%clk 0:00:12.4]} 67. Rd8+ {[%clk 0:00:10.3]}
67... Kc7 {[%clk 0:00:12.9]} 68. e8=Q {[%clk 0:00:10.8]} 68... Rxe8 {[%clk
0:00:12]} 69. Rxe8 {[%clk 0:00:11.7]} 69... Kd6 {[%clk 0:00:12.3]} 70. Re6+
{[%clk 0:00:11.6]} 70... Kc7 {[%clk 0:00:12.3]} 71. a5 {[%clk 0:00:12.1]} 71...
Kb8 {[%clk 0:00:12.3]} 72. Re7 {[%clk 0:00:11.7]} 72... Kc8 {[%clk 0:00:11.8]}
73. a6 {[%clk 0:00:11.9]} 73... Kd8 {[%clk 0:00:12.7]} 74. Rb7 {[%clk
0:00:11.1]} 74... Kc8 {[%clk 0:00:12.5]} 75. a7 {[%clk 0:00:11.2]} 1-0

[Event "*** Titled Tuesday Blitz"]
[Site "Chess.com"]
[Date "2020.04.07"]
[Round "7"]
[White "Bad4life"]
[Black "IljaJoke"]
[Result "1/2-1/2"]
[WhiteElo "2333"]
[BlackElo "2495"]
[TimeControl "180+1"]
[EndTime "14:20:32 PDT"]
[Termination "Game drawn - insufficient material"]

1. e4 {[%clk 0:03:00.9]} 1... g6 {[%clk 0:02:59.9]} 2. d4 {[%clk 0:03:00.7]}
2... Nf6 {[%clk 0:03:00.2]} 3. Bd3 {[%clk 0:03:00.4]} 3... d5 {[%clk 0:02:47.5]}
4. e5 {[%clk 0:03:00]} 4... Nfd7 {[%clk 0:02:48]} 5. h4 {[%clk 0:02:55.8]} 5...
c5 {[%clk 0:02:45.2]} 6. h5 {[%clk 0:02:51.7]} 6... Bg7 {[%clk 0:02:40.1]} 7.
hxg6 {[%clk 0:02:41.4]} 7... hxg6 {[%clk 0:02:40.3]} 8. Rxh8+ {[%clk 0:02:40.8]}
8... Bxh8 {[%clk 0:02:41.2]} 9. e6 {[%clk 0:02:40.9]} 9... Nf6 {[%clk
0:02:41.6]} 10. exf7+ {[%clk 0:02:40.9]} 10... Kxf7 {[%clk 0:02:42.5]} 11. Nf3
{[%clk 0:02:39.9]} 11... Nc6 {[%clk 0:02:39.6]} 12. Ng5+ {[%clk 0:02:18.3]}
12... Kg7 {[%clk 0:02:39.8]} 13. c3 {[%clk 0:02:06.6]} 13... cxd4 {[%clk
0:02:18.6]} 14. cxd4 {[%clk 0:01:56.3]} 14... Nxd4 {[%clk 0:02:17.8]} 15. Bxg6
{[%clk 0:01:43.8]} 15... Kxg6 {[%clk 0:02:18]} 16. Qxd4 {[%clk 0:01:39.8]} 16...
Ne4 {[%clk 0:02:03.8]} 17. Qd3 {[%clk 0:01:18.2]} 17... Qc7 {[%clk 0:01:57.1]}
18. Nd2 {[%clk 0:00:56.3]} 18... Bf6 {[%clk 0:00:58.2]} 19. Ngxe4 {[%clk
0:00:32.8]} 19... dxe4 {[%clk 0:00:59.1]} 20. Nxe4 {[%clk 0:00:28.3]} 20... Bf5
{[%clk 0:00:58.8]} 21. g4 {[%clk 0:00:26.5]} 21... Bxg4 {[%clk 0:00:30.9]} 22.
Ng3+ {[%clk 0:00:13.8]} 22... Kg7 {[%clk 0:00:28.9]} 23. Be3 {[%clk 0:00:09.8]}
23... Rd8 {[%clk 0:00:27.5]} 24. Qe4 {[%clk 0:00:10]} 24... Qa5+ {[%clk
0:00:24]} 25. Kf1 {[%clk 0:00:09.1]} 25... Qb5+ {[%clk 0:00:21]} 26. Kg1 {[%clk
0:00:07.8]} 26... Qd7 {[%clk 0:00:15.3]} 27. Rc1 {[%clk 0:00:04.3]} 27... Qe6
{[%clk 0:00:15.2]} 28. Qxb7 {[%clk 0:00:04]} 28... Rh8 {[%clk 0:00:10.4]} 29.
Qg2 {[%clk 0:00:04.1]} 29... Kf7 {[%clk 0:00:09.5]} 30. Re1 {[%clk 0:00:03.6]}
30... Qd6 {[%clk 0:00:08.4]} 31. Qe4 {[%clk 0:00:03.2]} 31... Rg8 {[%clk
0:00:07.9]} 32. Qh7+ {[%clk 0:00:02.7]} 32... Rg7 {[%clk 0:00:08.1]} 33. Qe4
{[%clk 0:00:03]} 33... Be6 {[%clk 0:00:08.8]} 34. Bf4 {[%clk 0:00:02.7]} 34...
Qd5 {[%clk 0:00:07.8]} 35. Qxd5 {[%clk 0:00:02.5]} 35... Bxd5 {[%clk 0:00:08.7]}
36. b3 {[%clk 0:00:03.2]} 36... e5 {[%clk 0:00:08.6]} 37. Bxe5 {[%clk
0:00:03.2]} 37... Bxe5 {[%clk 0:00:08.5]} 38. Rxe5 {[%clk 0:00:04.1]} 38... Be6
{[%clk 0:00:08.9]} 39. Re3 {[%clk 0:00:04.2]} 39... Rg4 {[%clk 0:00:09.3]} 40.
Kg2 {[%clk 0:00:04.4]} 40... a5 {[%clk 0:00:10.2]} 41. Kf3 {[%clk 0:00:04.5]}
41... Rd4 {[%clk 0:00:10.9]} 42. Ne4 {[%clk 0:00:04.1]} 42... Bd5 {[%clk
0:00:10]} 43. Kf4 {[%clk 0:00:04.4]} 43... a4 {[%clk 0:00:10.5]} 44. Ke5 {[%clk
0:00:04.7]} 44... Rd1 {[%clk 0:00:10]} 45. Nd6+ {[%clk 0:00:03.4]} 45... Kg6
{[%clk 0:00:10.3]} 46. Rg3+ {[%clk 0:00:03.2]} 46... Kh5 {[%clk 0:00:10.7]} 47.
bxa4 {[%clk 0:00:02.6]} 47... Bxa2 {[%clk 0:00:10.5]} 48. Kf5 {[%clk 0:00:02.9]}
48... Rd5+ {[%clk 0:00:10.2]} 49. Ke6 {[%clk 0:00:01.7]} 49... Rd3+ {[%clk
0:00:09.8]} 50. Kd7 {[%clk 0:00:02.1]} 50... Rd2 {[%clk 0:00:09.3]} 51. f4
{[%clk 0:00:01.7]} 51... Kh4 {[%clk 0:00:09.7]} 52. Rg5 {[%clk 0:00:02.6]} 52...
Kh3 {[%clk 0:00:09.7]} 53. Ke7 {[%clk 0:00:03.2]} 53... Bb1 {[%clk 0:00:10.6]}
54. Nf5 {[%clk 0:00:03.3]} 54... Re2+ {[%clk 0:00:11.5]} 55. Kf6 {[%clk
0:00:03.4]} 55... Rc2 {[%clk 0:00:11.7]} 56. Rg3+ {[%clk 0:00:03.8]} 56... Kh2
{[%clk 0:00:12.2]} 57. Ra3 {[%clk 0:00:04.4]} 57... Rc6+ {[%clk 0:00:12.5]} 58.
Ke5 {[%clk 0:00:04.1]} 58... Rc5+ {[%clk 0:00:13.4]} 59. Kd4 {[%clk 0:00:04.5]}
59... Rxf5 {[%clk 0:00:14.3]} 60. Ke3 {[%clk 0:00:04.9]} 60... Bc2 {[%clk
0:00:14]} 61. Ra2 {[%clk 0:00:04.8]} 61... Rc5 {[%clk 0:00:14.6]} 62. Kd4 {[%clk
0:00:05.2]} 62... Rc8 {[%clk 0:00:14.6]} 63. f5 {[%clk 0:00:04.8]} 63... Kh3
{[%clk 0:00:13.3]} 64. f6 {[%clk 0:00:05.2]} 64... Kg4 {[%clk 0:00:12.5]} 65.
Ke5 {[%clk 0:00:04.9]} 65... Bb3 {[%clk 0:00:12.7]} 66. Ra3 {[%clk 0:00:04.9]}
66... Rc3 {[%clk 0:00:10.8]} 67. f7 {[%clk 0:00:03.2]} 67... Re3+ {[%clk
0:00:10.1]} 68. Kd4 {[%clk 0:00:03.8]} 68... Rf3 {[%clk 0:00:10.1]} 69. f8=Q
{[%clk 0:00:03.6]} 69... Rxf8 {[%clk 0:00:08.8]} 70. Rxb3 {[%clk 0:00:04.1]}
70... Rf4+ {[%clk 0:00:09]} 71. Ke5 {[%clk 0:00:04.6]} 71... Rxa4 {[%clk
0:00:09.9]} 72. Rd3 {[%clk 0:00:04.9]} 72... Kg5 {[%clk 0:00:08.7]} 73. Rd4
{[%clk 0:00:05.8]} 73... Rxd4 {[%clk 0:00:08.4]} 74. Kxd4 {[%clk 0:00:06.7]}
1/2-1/2

[Event "*** Titled Tuesday Blitz"]
[Site "Chess.com"]
[Date "2020.04.07"]
[Round "7"]
[White "lIlIlIlI_lIl"]
[Black "Icewizard1"]
[Result "1/2-1/2"]
[WhiteElo "2619"]
[BlackElo "2859"]
[TimeControl "180+1"]
[EndTime "14:20:35 PDT"]
[Termination "Game drawn by agreement"]

1. e4 {[%clk 0:03:00.9]} 1... c5 {[%clk 0:03:00.3]} 2. Nf3 {[%clk 0:03:00.4]}
2... d6 {[%clk 0:02:57.1]} 3. d4 {[%clk 0:03:00.7]} 3... cxd4 {[%clk 0:02:55]}
4. Nxd4 {[%clk 0:03:01.2]} 4... Nf6 {[%clk 0:02:55.9]} 5. Nc3 {[%clk 0:03:01.8]}
5... g6 {[%clk 0:02:54.8]} 6. Be2 {[%clk 0:02:59]} 6... Bg7 {[%clk 0:02:55.4]}
7. O-O {[%clk 0:02:58.7]} 7... O-O {[%clk 0:02:55.5]} 8. Re1 {[%clk 0:02:58.7]}
8... a6 {[%clk 0:02:54.9]} 9. Bf1 {[%clk 0:02:54.3]} 9... b5 {[%clk 0:02:54.2]}
10. a4 {[%clk 0:02:52.9]} 10... b4 {[%clk 0:02:54.1]} 11. Nd5 {[%clk 0:02:53.4]}
11... Nxd5 {[%clk 0:02:50.8]} 12. exd5 {[%clk 0:02:53.6]} 12... Re8 {[%clk
0:02:46]} 13. a5 {[%clk 0:02:48.5]} 13... Bb7 {[%clk 0:02:43.5]} 14. Bc4 {[%clk
0:02:47.1]} 14... Qc7 {[%clk 0:02:38.6]} 15. Bb3 {[%clk 0:02:44.7]} 15... Nd7
{[%clk 0:02:36.8]} 16. Ra4 {[%clk 0:02:10.2]} 16... Nc5 {[%clk 0:02:33.9]} 17.
Rxb4 {[%clk 0:02:07.4]} 17... Qxa5 {[%clk 0:02:34.1]} 18. c3 {[%clk 0:01:53.1]}
18... Nxb3 {[%clk 0:02:32.9]} 19. Rxb7 {[%clk 0:01:30.6]} 19... Nxd4 {[%clk
0:02:30.2]} 20. cxd4 {[%clk 0:01:31.1]} 20... Qxd5 {[%clk 0:02:26.5]} 21. Rbxe7
{[%clk 0:01:30.5]} 21... Rxe7 {[%clk 0:02:23.9]} 22. Rxe7 {[%clk 0:01:31.4]}
22... Bf6 {[%clk 0:02:22]} 23. Re2 {[%clk 0:01:14.8]} 23... Qxd4 {[%clk
0:02:21.3]} 24. Rd2 {[%clk 0:01:03.5]} 24... Qb4 {[%clk 0:02:21.4]} 25. Rxd6
{[%clk 0:01:01.8]} 25... Bxb2 {[%clk 0:02:21.3]} 26. Bxb2 {[%clk 0:00:33.8]}
26... Qxb2 {[%clk 0:02:21.8]} 27. h4 {[%clk 0:00:34.1]} 27... Rc8 {[%clk
0:02:15.4]} 28. Qf3 {[%clk 0:00:17.2]} 28... Rc1+ {[%clk 0:02:10.1]} 29. Kh2
{[%clk 0:00:14.3]} 29... Qe5+ {[%clk 0:02:10.5]} 30. Qg3 {[%clk 0:00:14.5]}
30... Qxg3+ {[%clk 0:02:09.8]} 31. Kxg3 {[%clk 0:00:15.4]} 31... Ra1 {[%clk
0:02:07.1]} 32. Rd7 {[%clk 0:00:14.6]} 32... Kg7 {[%clk 0:02:06.2]} 33. Ra7
{[%clk 0:00:14]} 33... h5 {[%clk 0:02:05.5]} 34. f3 {[%clk 0:00:12.7]} 34... Kf6
{[%clk 0:02:05.7]} 35. Kf4 {[%clk 0:00:12.7]} 35... Ra4+ {[%clk 0:02:02.4]} 36.
Kg3 {[%clk 0:00:13]} 36... a5 {[%clk 0:01:58.4]} 37. Kh3 {[%clk 0:00:11]} 37...
Ra1 {[%clk 0:01:58.1]} 38. Kg3 {[%clk 0:00:09]} 38... a4 {[%clk 0:01:55.9]} 39.
Kf4 {[%clk 0:00:09.3]} 39... a3 {[%clk 0:01:53.8]} 40. Ra6+ {[%clk 0:00:08.6]}
40... Kg7 {[%clk 0:01:51.3]} 41. Kg3 {[%clk 0:00:05.8]} 41... a2 {[%clk
0:01:51.5]} 42. Kh2 {[%clk 0:00:04.4]} 42... f6 {[%clk 0:01:47.7]} 43. Ra7+
{[%clk 0:00:03.4]} 43... Kf8 {[%clk 0:01:45]} 44. Kg3 {[%clk 0:00:03.7]} 44...
g5 {[%clk 0:01:41.8]} 45. hxg5 {[%clk 0:00:02.2]} 45... fxg5 {[%clk 0:01:41.6]}
46. Kh2 {[%clk 0:00:03.1]} 46... h4 {[%clk 0:01:38]} 47. Ra3 {[%clk 0:00:02.7]}
47... Kf7 {[%clk 0:01:32.4]} 48. Ra7+ {[%clk 0:00:03.6]} 48... Kf6 {[%clk
0:01:26.3]} 49. Ra5 {[%clk 0:00:04.5]} 49... Ke6 {[%clk 0:01:24.5]} 50. g3
{[%clk 0:00:04]} 50... hxg3+ {[%clk 0:01:20.4]} 51. Kg2 {[%clk 0:00:04.5]} 51...
Kf7 {[%clk 0:01:18.6]} 52. Ra7+ {[%clk 0:00:04.6]} 52... Kf6 {[%clk 0:01:16.5]}
53. Ra6+ {[%clk 0:00:05.5]} 53... Ke5 {[%clk 0:01:13.5]} 54. Ra5+ {[%clk
0:00:06.4]} 54... Kf4 {[%clk 0:01:13.5]} 55. Ra4+ {[%clk 0:00:05.8]} 55... Ke3
{[%clk 0:01:13.5]} 56. Ra3+ {[%clk 0:00:06.1]} 56... Kd2 {[%clk 0:01:08.6]} 57.
Ra8 {[%clk 0:00:05.9]} 57... Ke1 {[%clk 0:01:04.1]} 58. Re8+ {[%clk 0:00:05.4]}
58... Kd1 {[%clk 0:01:01]} 59. Rd8+ {[%clk 0:00:06.3]} 59... Kc1 {[%clk
0:00:57.9]} 60. Rc8+ {[%clk 0:00:06.7]} 60... Kd1 {[%clk 0:00:56.2]} 61. Rd8+
{[%clk 0:00:06.5]} 61... Kc1 {[%clk 0:00:55.9]} 62. Rc8+ {[%clk 0:00:06.8]}
62... Kb2 {[%clk 0:00:55.2]} 63. Rb8+ {[%clk 0:00:06.7]} 63... Ka3 {[%clk
0:00:54.5]} 64. Ra8+ {[%clk 0:00:06.9]} 64... Kb4 {[%clk 0:00:52.5]} 65. Rb8+
{[%clk 0:00:07.8]} 65... Kc5 {[%clk 0:00:49.8]} 66. Rc8+ {[%clk 0:00:07.4]}
66... Kb6 {[%clk 0:00:48.8]} 67. Ra8 {[%clk 0:00:07.6]} 67... Kb7 {[%clk
0:00:46.7]} 68. Ra3 {[%clk 0:00:08]} 68... Kb6 {[%clk 0:00:46.1]} 1/2-1/2

[Event "*** Titled Tuesday Blitz"]
[Site "Chess.com"]
[Date "2020.04.07"]
[Round "7"]
[White "Trickov"]
[Black "vova-79"]
[Result "1/2-1/2"]
[WhiteElo "2250"]
[BlackElo "2416"]
[TimeControl "180+1"]
[EndTime "14:20:37 PDT"]
[Termination "Game drawn - timeout vs insufficient material"]

1. d4 {[%clk 0:03:00.9]} 1... d5 {[%clk 0:02:59.9]} 2. Nf3 {[%clk 0:02:53.4]}
2... Nf6 {[%clk 0:02:58.9]} 3. c4 {[%clk 0:02:51.2]} 3... c6 {[%clk 0:02:58.1]}
4. Nc3 {[%clk 0:02:47.8]} 4... e6 {[%clk 0:02:57.6]} 5. g3 {[%clk 0:02:45.1]}
5... dxc4 {[%clk 0:02:54.9]} 6. a4 {[%clk 0:02:44.2]} 6... Nbd7 {[%clk
0:02:48.9]} 7. e4 {[%clk 0:02:38.7]} 7... Bb4 {[%clk 0:02:45]} 8. Qc2 {[%clk
0:02:37.6]} 8... b5 {[%clk 0:02:42.5]} 9. Bg2 {[%clk 0:02:31.5]} 9... Bb7 {[%clk
0:02:40.7]} 10. O-O {[%clk 0:02:30.2]} 10... a6 {[%clk 0:02:40.8]} 11. e5 {[%clk
0:02:22.7]} 11... Nd5 {[%clk 0:02:38.7]} 12. Ne4 {[%clk 0:02:21.9]} 12... h6
{[%clk 0:02:32.1]} 13. b3 {[%clk 0:02:06.9]} 13... cxb3 {[%clk 0:02:30.2]} 14.
Qxb3 {[%clk 0:02:05.9]} 14... O-O {[%clk 0:02:28.9]} 15. Ba3 {[%clk 0:01:57.4]}
15... Bxa3 {[%clk 0:02:20.8]} 16. Rxa3 {[%clk 0:01:52.7]} 16... b4 {[%clk
0:02:20]} 17. Raa1 {[%clk 0:01:48.3]} 17... a5 {[%clk 0:02:20.1]} 18. Rfc1
{[%clk 0:01:46.3]} 18... Qb6 {[%clk 0:02:09.1]} 19. Nfd2 {[%clk 0:01:40.6]}
19... Ba6 {[%clk 0:02:05.5]} 20. Nc5 {[%clk 0:01:31.4]} 20... Nxc5 {[%clk
0:01:55.9]} 21. Rxc5 {[%clk 0:01:31.2]} 21... Nc3 {[%clk 0:01:51.2]} 22. Rxc3
{[%clk 0:01:19.1]} 22... Qxd4 {[%clk 0:01:50.4]} 23. Rcc1 {[%clk 0:00:53]} 23...
Qxd2 {[%clk 0:01:46.7]} 24. Rxc6 {[%clk 0:00:52]} 24... Qd4 {[%clk 0:01:15.4]}
25. Rac1 {[%clk 0:00:45.4]} 25... Ra7 {[%clk 0:01:07.3]} 26. R6c5 {[%clk
0:00:41.8]} 26... Bd3 {[%clk 0:00:51.1]} 27. Rc6 {[%clk 0:00:34]} 27... Qxe5
{[%clk 0:00:46.4]} 28. Qxd3 {[%clk 0:00:32.1]} 28... g6 {[%clk 0:00:38.8]} 29.
R6c5 {[%clk 0:00:32.2]} 29... Qf6 {[%clk 0:00:36.4]} 30. Qe3 {[%clk 0:00:31]}
30... Kg7 {[%clk 0:00:36]} 31. Rb5 {[%clk 0:00:30.4]} 31... Ra6 {[%clk 0:00:34]}
32. Bb7 {[%clk 0:00:28.6]} 32... Rd6 {[%clk 0:00:31]} 33. Rxa5 {[%clk
0:00:28.6]} 33... Rfd8 {[%clk 0:00:30.6]} 34. Be4 {[%clk 0:00:27.2]} 34... Qb2
{[%clk 0:00:17.8]} 35. Rac5 {[%clk 0:00:26.9]} 35... b3 {[%clk 0:00:16.5]} 36.
Qc3+ {[%clk 0:00:26]} 36... Qxc3 {[%clk 0:00:16.3]} 37. R5xc3 {[%clk 0:00:24]}
37... b2 {[%clk 0:00:14.3]} 38. Rf1 {[%clk 0:00:23.9]} 38... Rd4 {[%clk
0:00:13.4]} 39. Bb1 {[%clk 0:00:20.7]} 39... Rxa4 {[%clk 0:00:13.3]} 40. Rb3
{[%clk 0:00:18.2]} 40... Rd2 {[%clk 0:00:12.3]} 41. Kg2 {[%clk 0:00:14.4]} 41...
Rc4 {[%clk 0:00:11.7]} 42. Bd3 {[%clk 0:00:07.6]} 42... Rc1 {[%clk 0:00:10.2]}
43. Be4 {[%clk 0:00:07.6]} 43... f5 {[%clk 0:00:08.4]} 44. Bb1 {[%clk
0:00:07.4]} 44... Rdd1 {[%clk 0:00:07.8]} 45. Rxd1 {[%clk 0:00:07.2]} 45... Rxd1
{[%clk 0:00:07.9]} 46. Rxb2 {[%clk 0:00:07.8]} 46... Kf6 {[%clk 0:00:07.7]} 47.
Bc2 {[%clk 0:00:07.9]} 47... Rd2 {[%clk 0:00:07.1]} 48. Ra2 {[%clk 0:00:08.5]}
48... h5 {[%clk 0:00:06.7]} 49. Bb3 {[%clk 0:00:09]} 49... Rd6 {[%clk
0:00:05.8]} 50. Ra4 {[%clk 0:00:08.5]} 50... Rb6 {[%clk 0:00:05.8]} 51. Bc4
{[%clk 0:00:08.6]} 51... Rd6 {[%clk 0:00:06.1]} 52. Ra6 {[%clk 0:00:07.9]} 52...
Rxa6 {[%clk 0:00:04.7]} 53. Bxa6 {[%clk 0:00:08]} 53... e5 {[%clk 0:00:04.9]}
54. h4 {[%clk 0:00:08.2]} 54... g5 {[%clk 0:00:04.6]} 55. f4 {[%clk 0:00:07]}
55... exf4 {[%clk 0:00:02.5]} 56. gxf4 {[%clk 0:00:04.4]} 56... gxf4 {[%clk
0:00:02.7]} 57. Kf3 {[%clk 0:00:04.8]} 57... Ke5 {[%clk 0:00:02.6]} 58. Bd3
{[%clk 0:00:05.3]} 58... Kf6 {[%clk 0:00:03.5]} 59. Kxf4 {[%clk 0:00:05]} 59...
Kg7 {[%clk 0:00:04.4]} 60. Bxf5 {[%clk 0:00:05.4]} 60... Kh8 {[%clk 0:00:05.3]}
61. Bg6 {[%clk 0:00:05.5]} 61... Kg8 {[%clk 0:00:06.2]} 62. Bxh5 {[%clk
0:00:06]} 62... Kh8 {[%clk 0:00:07.1]} 63. Kg5 {[%clk 0:00:06.6]} 63... Kg8
{[%clk 0:00:08]} 64. Kh6 {[%clk 0:00:07]} 64... Kh8 {[%clk 0:00:08.9]} 65. Bg6
{[%clk 0:00:06.7]} 65... Kg8 {[%clk 0:00:09.8]} 1/2-1/2